[Event "Championnat d'Europe de Blitz"]
[Date "2024.12.09"]
[White "Koelle, Tobias"]
[Black "Paichadze, Luka"]
[WhiteElo "2437"]
[BlackElo "2532"]
[Round "13.21"]
[Result "0-1"]
[TimeControl "180+2"]

1. d4 {[%clk 00:03:03]} Nf6 {[%emt 00:00:02] [%clk 00:03:03]} 2. c4 {[%emt
00:00:01] [%clk 00:03:04]} e6 {[%emt 00:00:01] [%clk 00:03:04]} 3. Nf3 {[%clk
00:03:05]} Bb4+ {[%emt 00:00:02] [%clk 00:03:04]} 4. Nbd2 {[%clk 00:03:06]} d5
{[%emt 00:00:02] [%clk 00:03:04]} 5. c5 {[%clk 00:03:07]} O-O {[%emt 00:00:06]
[%clk 00:03:00]} 6. a3 {[%emt 00:00:01] [%clk 00:03:08]} Bxd2+ {[%emt 00:00:02]
[%clk 00:03:00]} 7. Bxd2 {[%emt 00:00:01] [%clk 00:03:09]} b6 {[%emt 00:00:03]
[%clk 00:03:00]} 8. b4 {[%emt 00:00:02] [%clk 00:03:08]} Ba6 {[%emt 00:00:04]
[%clk 00:02:58]} 9. Bg5 {[%emt 00:00:03] [%clk 00:03:07]} h6 {[%emt 00:00:10]
[%clk 00:02:50]} 10. Bh4 {[%emt 00:00:02] [%clk 00:03:07]} Bc4 {[%emt 00:00:04]
[%clk 00:02:48]} 11. g4 {[%emt 00:00:20] [%clk 00:02:50]} g5 {[%emt 00:00:40]
[%clk 00:02:10]} 12. Bg3 {[%clk 00:02:51]} Ne4 {[%clk 00:02:11]} 13. Ne5 {[%emt
00:00:13] [%clk 00:02:40]} b5 {[%emt 00:00:11] [%clk 00:02:02]} 14. f3 {[%emt
00:00:11] [%clk 00:02:30]} Nxg3 {[%emt 00:00:14] [%clk 00:01:51]} 15. hxg3
{[%emt 00:00:01] [%clk 00:02:31]} Kg7 {[%emt 00:00:02] [%clk 00:01:51]} 16. f4
{[%emt 00:00:02] [%clk 00:02:31]} Nd7 {[%emt 00:00:37] [%clk 00:01:17]} 17. Nf3
{[%emt 00:00:06] [%clk 00:02:26]} Nf6 {[%emt 00:00:08] [%clk 00:01:11]} 18. Qc1
{[%emt 00:00:14] [%clk 00:02:14]} Ne4 {[%emt 00:00:04] [%clk 00:01:09]} 19. Rg1
{[%emt 00:00:12] [%clk 00:02:05]} f6 {[%emt 00:00:04] [%clk 00:01:07]} 20. Qe3
{[%emt 00:00:03] [%clk 00:02:04]} a5 {[%emt 00:00:02] [%clk 00:01:07]} 21. Rd1
{[%emt 00:00:15] [%clk 00:01:50]} axb4 {[%emt 00:00:02] [%clk 00:01:07]} 22.
axb4 {[%clk 00:01:51]} Ra2 {[%emt 00:00:03] [%clk 00:01:07]} 23. Nd2 {[%emt
00:00:02] [%clk 00:01:51]} Rxd2 {[%emt 00:00:05] [%clk 00:01:04]} 24. Rxd2
{[%emt 00:00:01] [%clk 00:01:51]} Nxd2 {[%emt 00:00:09] [%clk 00:00:57]} 25.
Qxd2 {[%emt 00:00:01] [%clk 00:01:52]} Qa8 {[%emt 00:00:06] [%clk 00:00:53]} 26.
Kf2 {[%emt 00:00:02] [%clk 00:01:52]} Qa3 {[%emt 00:00:02] [%clk 00:00:54]} 27.
Bg2 {[%emt 00:00:03] [%clk 00:01:50]} Ra8 {[%emt 00:00:02] [%clk 00:00:54]} 28.
Bf3 {[%emt 00:00:06] [%clk 00:01:45]} Qb3 {[%emt 00:00:04] [%clk 00:00:53]} 29.
Rc1 {[%emt 00:00:18] [%clk 00:01:29]} Ra2 {[%emt 00:00:06] [%clk 00:00:49]} 30.
Qe1 {[%emt 00:00:01] [%clk 00:01:30]} Qb2 {[%emt 00:00:10] [%clk 00:00:41]} 31.
Rd1 {[%emt 00:00:06] [%clk 00:01:26]} Ra4 {[%emt 00:00:02] [%clk 00:00:41]} 32.
Qh1 {[%emt 00:00:11] [%clk 00:01:17]} Rxb4 {[%emt 00:00:03] [%clk 00:00:40]} 33.
Qh5 {[%emt 00:00:01] [%clk 00:01:17]} Rb3 {[%emt 00:00:02] [%clk 00:00:41]} 34.
Kg1 {[%emt 00:00:47] [%clk 00:00:32]} Qc2 {[%emt 00:00:09] [%clk 00:00:34]} 35.
Rf1 {[%emt 00:00:05] [%clk 00:00:29]} Qg6 {[%emt 00:00:02] [%clk 00:00:34]} 36.
Qh2 {[%emt 00:00:03] [%clk 00:00:28]} Rb1 {[%emt 00:00:03] [%clk 00:00:33]} 37.
f5 {[%emt 00:00:11] [%clk 00:00:19]} Rxf1+ {[%emt 00:00:01] [%clk 00:00:34]} 38.
Kxf1 {[%clk 00:00:20]} exf5 {[%emt 00:00:01] [%clk 00:00:35]} 39. gxf5 {[%emt
00:00:06] [%clk 00:00:16]} Qxf5 {[%emt 00:00:01] [%clk 00:00:36]} 40. Qh5 {[%clk
00:00:17]} Qg6 {[%emt 00:00:07] [%clk 00:00:31]} 41. Qh3 {[%emt 00:00:02] [%clk
00:00:17]} f5 {[%emt 00:00:02] [%clk 00:00:31]} 42. Qh2 {[%emt 00:00:04] [%clk
00:00:16]} g4 {[%emt 00:00:03] [%clk 00:00:29]} 43. Bh1 {[%emt 00:00:04] [%clk
00:00:14]} Qe6 {[%emt 00:00:01] [%clk 00:00:30]} 44. Qf2 {[%emt 00:00:01] [%clk
00:00:15]} b4 {[%emt 00:00:02] [%clk 00:00:31]} 45. Qf4 {[%emt 00:00:02] [%clk
00:00:15]} Qxe2+ {[%emt 00:00:01] [%clk 00:00:31]} 46. Kg1 {[%emt 00:00:02]
[%clk 00:00:16]} Qe1+ {[%emt 00:00:13] [%clk 00:00:19]} 47. Kh2 {[%clk
00:00:17]} Qe7 {[%emt 00:00:11] [%clk 00:00:11]} 48. Qxf5 {[%emt 00:00:02] [%clk
00:00:18]} b3 {[%clk 00:00:12]} 49. Qxg4+ {[%emt 00:00:04] [%clk 00:00:16]} Kf8
{[%emt 00:00:01] [%clk 00:00:12]} 50. Qf5+ {[%emt 00:00:03] [%clk 00:00:14]} Qf7
{[%emt 00:00:02] [%clk 00:00:13]} 51. Qc8+ {[%emt 00:00:02] [%clk 00:00:14]} Kg7
{[%emt 00:00:02] [%clk 00:00:14]} 52. Qb8 {[%emt 00:00:08] [%clk 00:00:08]} Qf2+
{[%emt 00:00:02] [%clk 00:00:13]} 53. Kh3 {[%clk 00:00:09]} Qf5+ {[%emt
00:00:04] [%clk 00:00:11]} 54. Kh2 {[%clk 00:00:10]} Qf2+ {[%emt 00:00:03] [%clk
00:00:10]} 55. Kh3 {[%clk 00:00:12]} Bf1+ {[%emt 00:00:01] [%clk 00:00:11]} 56.
Kg4 {[%emt 00:00:02] [%clk 00:00:11]} Qxd4+ {[%emt 00:00:04] [%clk 00:00:09]}
57. Kf5 {[%emt 00:00:01] [%clk 00:00:12]} Bh3+ {[%emt 00:00:04] [%clk 00:00:07]}

[Site "Europe Echecs"]

[Event "Championnat d'Europe de Blitz"]
[Date "2024.12.09"]
[White "Saric, Ante"]
[Black "Ghimpu, Samuel-Timotei"]
[WhiteElo "2482"]
[BlackElo "2475"]
[Round "13.22"]
[Result "0-1"]
[TimeControl "180+2"]

1. Nf3 {[%emt 00:20:23] [%clk 00:03:03]} d5 {[%emt 00:00:04] [%clk 00:03:00]} 2.
g3 {[%clk 00:03:04]} c5 {[%emt 00:00:01] [%clk 00:03:01]} 3. Bg2 {[%emt
00:00:01] [%clk 00:03:05]} Nc6 {[%emt 00:00:04] [%clk 00:02:58]} 4. d4 {[%emt
00:00:01] [%clk 00:03:06]} cxd4 {[%emt 00:00:07] [%clk 00:02:53]} 5. Nxd4 {[%emt
00:00:01] [%clk 00:03:07]} e6 {[%emt 00:00:01] [%clk 00:02:54]} 6. O-O {[%emt
00:00:11] [%clk 00:02:59]} Bc5 {[%emt 00:00:01] [%clk 00:02:54]} 7. Nxc6 {[%emt
00:00:01] [%clk 00:02:59]} bxc6 {[%emt 00:00:02] [%clk 00:02:56]} 8. c4 {[%emt
00:00:01] [%clk 00:03:01]} Nf6 {[%emt 00:00:01] [%clk 00:02:56]} 9. Qc2 {[%emt
00:00:02] [%clk 00:03:01]} Qe7 {[%clk 00:02:57]} 10. cxd5 {[%emt 00:00:18] [%clk
00:02:46]} cxd5 {[%clk 00:02:58]} 11. Be3 {[%emt 00:00:12] [%clk 00:02:37]} Bxe3
{[%emt 00:00:01] [%clk 00:02:59]} 12. Qc6+ {[%clk 00:02:38]} Qd7 {[%clk
00:03:01]} 13. Qxa8 {[%emt 00:00:02] [%clk 00:02:38]} O-O {[%clk 00:03:02]} 14.
fxe3 {[%emt 00:00:10] [%clk 00:02:29]} Ba6 {[%emt 00:00:09] [%clk 00:02:55]} 15.
Qxf8+ {[%emt 00:00:12] [%clk 00:02:20]} Kxf8 {[%emt 00:00:01] [%clk 00:02:56]}
16. Nc3 {[%emt 00:00:01] [%clk 00:02:21]} Qb7 {[%emt 00:00:14] [%clk 00:02:44]}
17. Bf3 {[%emt 00:00:37] [%clk 00:01:46]} Qxb2 {[%emt 00:00:13] [%clk 00:02:32]}
18. Rfc1 {[%emt 00:00:04] [%clk 00:01:44]} Qd2 {[%emt 00:00:21] [%clk 00:02:13]}
19. Kf2 {[%emt 00:00:10] [%clk 00:01:37]} g5 {[%emt 00:00:07] [%clk 00:02:08]}
20. g4 {[%emt 00:00:19] [%clk 00:01:19]} e5 {[%emt 00:00:10] [%clk 00:02:01]}
21. h3 {[%emt 00:00:19] [%clk 00:01:02]} e4 {[%emt 00:00:12] [%clk 00:01:50]}
22. Bg2 {[%emt 00:00:03] [%clk 00:01:02]} h5 {[%emt 00:00:21] [%clk 00:01:31]}
23. gxh5 {[%emt 00:00:04] [%clk 00:01:00]} d4 {[%emt 00:00:02] [%clk 00:01:31]}
24. exd4 {[%emt 00:00:06] [%clk 00:00:55]} Qxd4+ {[%emt 00:00:01] [%clk
00:01:32]} 25. Kf1 {[%emt 00:00:17] [%clk 00:00:41]} Qe3 {[%emt 00:00:12] [%clk
00:01:22]} 26. Rc2 {[%emt 00:00:08] [%clk 00:00:35]} Nxh5 {[%emt 00:00:20] [%clk
00:01:04]} 27. Nxe4 {[%emt 00:00:01] [%clk 00:00:36]} f5 {[%emt 00:00:18] [%clk
00:00:48]} 28. Bf3 {[%emt 00:00:11] [%clk 00:00:27]} fxe4 {[%emt 00:00:03] [%clk
00:00:47]} 29. Bxh5 {[%emt 00:00:01] [%clk 00:00:28]} Qxh3+ {[%emt 00:00:02]
[%clk 00:00:46]} 30. Kf2 {[%emt 00:00:01] [%clk 00:00:29]} Qh2+ {[%emt 00:00:11]
[%clk 00:00:38]} 31. Ke3 {[%emt 00:00:01] [%clk 00:00:29]} Qf4+ {[%emt 00:00:02]
[%clk 00:00:38]} 32. Kd4 {[%emt 00:00:06] [%clk 00:00:25]} Qf6+ {[%emt 00:00:01]
[%clk 00:00:39]} 33. Ke3 {[%emt 00:00:03] [%clk 00:00:25]} Qxa1 {[%emt 00:00:03]
[%clk 00:00:38]}

[Site "Europe Echecs"]

[Event "Championnat d'Europe de Blitz"]
[Date "2024.12.09"]
[White "Dragnev, Valentin"]
[Black "Dvirnyy, Danyyil"]
[WhiteElo "2563"]
[BlackElo "2491"]
[Round "13.23"]
[Result "1-0"]
[TimeControl "180+2"]

1. e4 {[%emt 00:07:08] [%clk 00:03:03]} c5 {[%clk 00:03:03]} 2. Nf3 {[%emt
00:00:01] [%clk 00:03:04]} e6 {[%clk 00:03:04]} 3. c3 {[%emt 00:00:03] [%clk
00:03:03]} Nf6 {[%emt 00:00:02] [%clk 00:03:04]} 4. e5 {[%clk 00:03:04]} Nd5
{[%emt 00:00:01] [%clk 00:03:05]} 5. d4 {[%clk 00:03:06]} cxd4 {[%emt 00:00:02]
[%clk 00:03:06]} 6. cxd4 {[%clk 00:03:07]} d6 {[%emt 00:00:02] [%clk 00:03:06]}
7. Bc4 {[%emt 00:00:01] [%clk 00:03:08]} Be7 {[%emt 00:00:03] [%clk 00:03:05]}
8. O-O {[%emt 00:00:01] [%clk 00:03:08]} O-O {[%emt 00:00:02] [%clk 00:03:05]}
9. Qe2 {[%emt 00:00:02] [%clk 00:03:09]} Bd7 {[%emt 00:00:07] [%clk 00:03:00]}
10. Nc3 {[%emt 00:00:13] [%clk 00:02:58]} Nxc3 {[%emt 00:00:08] [%clk 00:02:53]}
11. bxc3 {[%emt 00:00:01] [%clk 00:02:59]} Bc6 {[%emt 00:00:03] [%clk 00:02:53]}
12. exd6 {[%emt 00:00:01] [%clk 00:03:00]} Bxd6 {[%emt 00:00:12] [%clk
00:02:42]} 13. Ne5 {[%emt 00:00:02] [%clk 00:03:00]} Bd5 {[%emt 00:00:26] [%clk
00:02:19]} 14. Bd3 {[%emt 00:00:21] [%clk 00:02:40]} Nc6 {[%emt 00:00:12] [%clk
00:02:09]} 15. f4 {[%emt 00:00:04] [%clk 00:02:39]} Rc8 {[%emt 00:00:17] [%clk
00:01:54]} 16. Be3 {[%emt 00:00:05] [%clk 00:02:35]} Ne7 {[%emt 00:00:25] [%clk
00:01:31]} 17. c4 {[%emt 00:00:02] [%clk 00:02:36]} Bc6 {[%emt 00:00:01] [%clk
00:01:32]} 18. Rad1 {[%emt 00:00:10] [%clk 00:02:28]} Ba4 {[%emt 00:00:05] [%clk
00:01:29]} 19. Rde1 {[%emt 00:00:03] [%clk 00:02:27]} Bb4 {[%emt 00:00:15] [%clk
00:01:16]} 20. Rb1 {[%emt 00:00:07] [%clk 00:02:21]} Bc3 {[%emt 00:00:05] [%clk
00:01:14]} 21. Qf2 {[%emt 00:00:25] [%clk 00:01:57]} Nf5 {[%emt 00:00:23] [%clk
00:00:53]} 22. Bxf5 {[%emt 00:00:11] [%clk 00:01:48]} exf5 {[%emt 00:00:01]
[%clk 00:00:54]} 23. Rfc1 {[%emt 00:00:12] [%clk 00:01:37]} f6 {[%emt 00:00:21]
[%clk 00:00:36]} 24. Rxc3 {[%emt 00:00:20] [%clk 00:01:20]} fxe5 {[%emt
00:00:01] [%clk 00:00:37]} 25. fxe5 {[%emt 00:00:05] [%clk 00:01:17]} f4 {[%clk
00:00:38]} 26. Bxf4 {[%emt 00:00:25] [%clk 00:00:54]} b5 {[%emt 00:00:01] [%clk
00:00:39]} 27. d5 {[%emt 00:00:13] [%clk 00:00:43]} Rxc4 {[%emt 00:00:07] [%clk
00:00:35]} 28. Rxc4 {[%emt 00:00:04] [%clk 00:00:40]} bxc4 {[%emt 00:00:01]
[%clk 00:00:36]} 29. Qd4 {[%emt 00:00:01] [%clk 00:00:41]} Bc6 {[%emt 00:00:05]
[%clk 00:00:33]} 30. d6 {[%emt 00:00:17] [%clk 00:00:26]} Kh8 {[%emt 00:00:27]
[%clk 00:00:08]} 31. e6 {[%emt 00:00:01] [%clk 00:00:27]} Qh4 {[%emt 00:00:03]
[%clk 00:00:06]} 32. e7 {[%emt 00:00:15] [%clk 00:00:15]} Rg8 {[%emt 00:00:04]
[%clk 00:00:04]} 33. Re1 {[%emt 00:00:10] [%clk 00:00:07]} Qg4 {[%emt 00:00:02]
[%clk 00:00:04]} 34. Qf2 {[%emt 00:00:04] [%clk 00:00:05]} c3 {[%emt 00:00:02]
[%clk 00:00:04]} 35. h3 {[%emt 00:00:03] [%clk 00:00:04]} Qg6 {[%clk 00:00:05]}
36. Rc1 {[%emt 00:00:02] [%clk 00:00:04]} Qf6 {[%emt 00:00:03] [%clk 00:00:04]}
37. Qg3 {[%emt 00:00:03]} c2 {[%emt 00:00:02] [%clk 00:00:03]} 38. Rxc2 {[%emt
00:00:01] [%clk 00:00:05]} Bd7 {[%emt 00:00:01] [%clk 00:00:04]} 39. Rf2 {[%clk
00:00:05]} Qe6 {[%emt 00:00:01] [%clk 00:00:05]} 40. Be5 {[%emt 00:00:01] [%clk
00:00:06]} h6 {[%emt 00:00:01] [%clk 00:00:07]} 41. Rf8 {[%clk 00:00:07]} 1-0

[Site "Europe Echecs"]

[Event "Championnat d'Europe de Blitz"]
[Date "2024.12.09"]
[White "Tudor, Henry Edward"]
[Black "Subelj, Jan"]
[WhiteElo "2375"]
[BlackElo "2526"]
[Round "13.24"]
[Result "1/2-1/2"]
[TimeControl "180+2"]

1. d4 {[%emt 00:17:06] [%clk 00:03:03]} Nf6 {[%clk 00:03:03]} 2. c4 {[%emt
00:00:01] [%clk 00:03:05]} c6 {[%clk 00:03:04]} 3. Nc3 {[%clk 00:03:05]} d5
{[%clk 00:03:05]} 4. cxd5 {[%emt 00:00:02] [%clk 00:03:07]} cxd5 {[%clk
00:03:06]} 5. Bf4 {[%clk 00:03:08]} Nc6 {[%clk 00:03:06]} 6. e3 {[%clk
00:03:09]} a6 {[%emt 00:00:05] [%clk 00:03:04]} 7. Rc1 {[%clk 00:03:11]} Bf5
{[%emt 00:00:03] [%clk 00:03:03]} 8. Nf3 {[%emt 00:00:09] [%clk 00:03:04]} Rc8
{[%emt 00:00:01] [%clk 00:03:04]} 9. Be2 {[%emt 00:00:08] [%clk 00:02:58]} e6
{[%emt 00:00:07] [%clk 00:02:58]} 10. O-O {[%emt 00:00:22] [%clk 00:02:38]} Bd6
{[%emt 00:00:02] [%clk 00:02:58]} 11. Bxd6 {[%emt 00:00:05] [%clk 00:02:36]}
Qxd6 {[%emt 00:00:02] [%clk 00:02:58]} 12. Na4 {[%emt 00:00:09] [%clk 00:02:29]}
O-O {[%emt 00:00:02] [%clk 00:02:57]} 13. Nc5 {[%emt 00:00:02] [%clk 00:02:30]}
Qe7 {[%emt 00:00:12] [%clk 00:02:46]} 14. Qb3 {[%emt 00:00:05] [%clk 00:02:27]}
Rb8 {[%emt 00:00:02] [%clk 00:02:46]} 15. Qa3 {[%emt 00:00:48] [%clk 00:01:42]}
Ne4 {[%emt 00:00:25] [%clk 00:02:23]} 16. b4 {[%emt 00:00:22] [%clk 00:01:22]}
Rfc8 {[%emt 00:00:33] [%clk 00:01:51]} 17. Qb2 {[%emt 00:00:10] [%clk 00:01:14]}
Nd6 {[%emt 00:00:03] [%clk 00:01:50]} 18. a4 {[%emt 00:00:04] [%clk 00:01:13]}
a5 {[%emt 00:00:03] [%clk 00:01:49]} 19. b5 {[%emt 00:00:05] [%clk 00:01:09]}
Nb4 {[%emt 00:00:03] [%clk 00:01:48]} 20. Ne5 {[%emt 00:00:05] [%clk 00:01:07]}
Rd8 {[%emt 00:00:12] [%clk 00:01:37]} 21. b6 {[%emt 00:00:57] [%clk 00:00:13]}
f6 {[%emt 00:00:11] [%clk 00:01:28]} 22. Nf3 {[%emt 00:00:01] [%clk 00:00:14]}
Nc8 {[%emt 00:00:06] [%clk 00:01:23]} 23. Nb3 {[%emt 00:00:04] [%clk 00:00:13]}
Nxb6 {[%emt 00:00:23] [%clk 00:01:02]} 24. Nxa5 {[%emt 00:00:01] [%clk
00:00:14]} Ra8 {[%emt 00:00:02] [%clk 00:01:02]} 25. Rc5 {[%emt 00:00:04] [%clk
00:00:13]} Nxa4 {[%emt 00:00:26] [%clk 00:00:38]} 26. Qxb4 {[%clk 00:00:14]}
Nxc5 {[%emt 00:00:05] [%clk 00:00:35]} 27. dxc5 {[%clk 00:00:15]} Qc7 {[%emt
00:00:07] [%clk 00:00:30]} 28. Nb3 {[%emt 00:00:06] [%clk 00:00:11]} e5 {[%clk
00:00:30]} 29. Rc1 {[%emt 00:00:03] [%clk 00:00:10]} Ra2 {[%emt 00:00:05] [%clk
00:00:28]} 30. Nbd2 {[%emt 00:00:04] [%clk 00:00:08]} Rda8 {[%emt 00:00:07]
[%clk 00:00:23]} 31. h3 {[%emt 00:00:06] [%clk 00:00:04]} Bg6 {[%emt 00:00:12]
[%clk 00:00:13]} 32. Bf1 {[%clk 00:00:05]} R8a4 {[%emt 00:00:03] [%clk
00:00:12]} 33. Qb3 {[%emt 00:00:02] [%clk 00:00:05]} Bf7 {[%clk 00:00:13]} 34.
Qb6 {[%emt 00:00:01] [%clk 00:00:06]} Qxb6 {[%emt 00:00:02] [%clk 00:00:13]} 35.
cxb6 {[%clk 00:00:08]} h6 {[%emt 00:00:02] [%clk 00:00:14]} 36. Rc8+ {[%emt
00:00:01] [%clk 00:00:08]} Kh7 {[%emt 00:00:01] [%clk 00:00:14]} 37. Rc7 {[%clk
00:00:10]} Bg6 {[%emt 00:00:01] [%clk 00:00:15]} 38. Nb3 {[%emt 00:00:07] [%clk
00:00:04]} Rb4 {[%emt 00:00:05] [%clk 00:00:13]} 39. Nc5 {[%emt 00:00:02] [%clk
00:00:03]} Ra1 {[%emt 00:00:01] [%clk 00:00:14]} 40. Ne6 {[%emt 00:00:02] [%clk
00:00:03]} Bd3 {[%emt 00:00:02] [%clk 00:00:15]} 41. Rxg7+ {[%emt 00:00:02]
[%clk 00:00:03]} Kh8 {[%clk 00:00:16]} 42. Rxb7 {[%clk 00:00:05]} Rxf1+ {[%emt
00:00:01] [%clk 00:00:17]} 43. Kh2 {[%clk 00:00:06]} Rxf2 {[%emt 00:00:01] [%clk
00:00:17]} 44. Nh4 {[%emt 00:00:04] [%clk 00:00:04]} Rfb2 {[%emt 00:00:05] [%clk
00:00:14]} 45. Rb8+ {[%emt 00:00:02] [%clk 00:00:05]} Kh7 {[%clk 00:00:16]} 46.
Rb7+ {[%clk 00:00:06]} Kg8 {[%emt 00:00:01] [%clk 00:00:17]} 47. Rg7+ {[%emt
00:00:02] [%clk 00:00:06]} Kh8 {[%emt 00:00:01] [%clk 00:00:18]} 48. Rf7 {[%emt
00:00:04] [%clk 00:00:04]} Rxb6 {[%emt 00:00:06] [%clk 00:00:15]} 49. Rf8+
{[%clk 00:00:05]} Kh7 {[%emt 00:00:03] [%clk 00:00:14]} 50. Rf7+ {[%emt
00:00:01] [%clk 00:00:06]} Kg8 {[%emt 00:00:01] [%clk 00:00:15]} 51. Rf8+ {[%emt
00:00:03] [%clk 00:00:05]} Kh7 {[%emt 00:00:01] [%clk 00:00:15]} 1/2-1/2

[Site "Europe Echecs"]

[Event "Championnat d'Europe de Blitz"]
[Date "2024.12.09"]
[White "Laurusas, Tomas"]
[Black "Boyer, Mahel"]
[WhiteElo "2578"]
[BlackElo "2526"]
[Round "13.25"]
[Result "0-1"]
[TimeControl "180+2"]

1. d4 {[%clk 00:03:03]} g6 {[%clk 00:03:03]} 2. c4 {[%emt 00:00:02] [%clk
00:03:04]} Bg7 {[%clk 00:03:05]} 3. Nf3 {[%clk 00:03:05]} d6 {[%emt 00:00:01]
[%clk 00:03:06]} 4. Nc3 {[%emt 00:00:02] [%clk 00:03:05]} c5 {[%emt 00:00:02]
[%clk 00:03:06]} 5. e3 {[%clk 00:03:06]} Nf6 {[%emt 00:00:01] [%clk 00:03:07]}
6. Be2 {[%emt 00:00:02] [%clk 00:03:06]} O-O {[%emt 00:00:02] [%clk 00:03:07]}
7. O-O {[%emt 00:00:01] [%clk 00:03:07]} e6 {[%emt 00:00:03] [%clk 00:03:07]} 8.
d5 {[%emt 00:00:04] [%clk 00:03:05]} exd5 {[%emt 00:00:02] [%clk 00:03:06]} 9.
cxd5 {[%emt 00:00:01] [%clk 00:03:05]} Re8 {[%emt 00:00:02] [%clk 00:03:06]} 10.
Nd2 {[%emt 00:00:01] [%clk 00:03:06]} Nbd7 {[%emt 00:00:01] [%clk 00:03:07]} 11.
a4 {[%emt 00:00:05] [%clk 00:03:03]} a6 {[%clk 00:03:08]} 12. h3 {[%emt
00:00:05] [%clk 00:03:01]} Ne5 {[%emt 00:00:04] [%clk 00:03:07]} 13. Kh1 {[%emt
00:00:16] [%clk 00:02:47]} Rb8 {[%emt 00:00:06] [%clk 00:03:02]} 14. e4 {[%emt
00:00:10] [%clk 00:02:38]} g5 {[%emt 00:00:02] [%clk 00:03:03]} 15. Ra3 {[%emt
00:00:06] [%clk 00:02:34]} g4 {[%emt 00:00:02] [%clk 00:03:03]} 16. hxg4 {[%emt
00:00:12] [%clk 00:02:23]} Nfxg4 {[%emt 00:00:02] [%clk 00:03:04]} 17. g3 {[%emt
00:00:02] [%clk 00:02:23]} h5 {[%emt 00:00:17] [%clk 00:02:49]} 18. Kg2 {[%emt
00:00:02] [%clk 00:02:23]} h4 {[%clk 00:02:50]} 19. Rh1 {[%emt 00:00:36] [%clk
00:01:49]} hxg3 {[%emt 00:00:01] [%clk 00:02:50]} 20. Kxg3 {[%emt 00:00:02]
[%clk 00:01:50]} b5 {[%emt 00:00:59] [%clk 00:01:53]} 21. axb5 {[%clk 00:01:51]}
axb5 {[%emt 00:00:01] [%clk 00:01:55]} 22. Nxb5 {[%emt 00:00:08] [%clk
00:01:45]} Bd7 {[%emt 00:00:26] [%clk 00:01:31]} 23. Nc3 {[%emt 00:00:16] [%clk
00:01:30]} f5 {[%emt 00:00:08] [%clk 00:01:24]} 24. f4 {[%emt 00:00:07] [%clk
00:01:26]} Rb4 {[%emt 00:00:12] [%clk 00:01:14]} 25. Rh5 {[%emt 00:00:22] [%clk
00:01:06]} Qf6 {[%emt 00:00:22] [%clk 00:00:54]} 26. Nf3 {[%emt 00:00:13] [%clk
00:00:55]} Ng6 {[%emt 00:00:14] [%clk 00:00:42]} 27. Ra7 {[%emt 00:00:13] [%clk
00:00:45]} fxe4 {[%emt 00:00:02] [%clk 00:00:41]} 28. Rxd7 {[%emt 00:00:02]
[%clk 00:00:45]} exf3 {[%emt 00:00:01] [%clk 00:00:42]} 29. Bxf3 {[%emt
00:00:01] [%clk 00:00:46]} Ne3 {[%emt 00:00:04] [%clk 00:00:40]} 30. Bxe3 {[%emt
00:00:25] [%clk 00:00:24]} Rxe3 {[%emt 00:00:01] [%clk 00:00:40]} 31. Ne2 {[%emt
00:00:23] [%clk 00:00:03]} Nxf4 {[%emt 00:00:02] [%clk 00:00:40]} 32. Qh1 {[%clk
00:00:04]} Nxe2+ {[%emt 00:00:04] [%clk 00:00:38]} 33. Kf2 {[%clk 00:00:06]}
Rxf3+ {[%emt 00:00:28] [%clk 00:00:12]} 34. Qxf3 {[%emt 00:00:01] [%clk
00:00:06]} Rf4 {[%clk 00:00:13]} 35. Rd8+ {[%emt 00:00:02] [%clk 00:00:07]} Qxd8
{[%emt 00:00:01] [%clk 00:00:14]} 0-1

[Site "Europe Echecs"]